fUST/lending_fUST_20240711
["ID","MTS","AMOUNT","RATE_DAILY","PERIOD"]
[331711520,1720680554151,-166.757365,0.00021918,2]
[331711550,1720680632341,-1980.53584489,0.00023,2]
[331711552,1720680632350,-1000.0,0.00023,23]
[331711554,1720680632360,-2816.36415511,0.00023072,2]
[331711609,1720680638420,-22083.63584489,0.00023072,2]
[331711611,1720680638431,-271.92319854,0.00023453,2]
[331711613,1720680638442,-3575.5896779,0.00023514,2]
[331711615,1720680638452,-890.00071419,0.00023866,2]
[331711617,1720680638462,-189.30856144,0.00025,2]
[331711619,1720680638474,-791.03297129,0.00025056,2]
[331711621,1720680638485,-229.23922118,0.00025127,2]
[331711623,1720680638495,-154.55950541,0.00025204,2]
[331711625,1720680638506,-30000.0,0.00025501,2]
[331711627,1720680638517,-1000.0,0.00026,26]
[331711629,1720680638528,-890.00071419,0.00026243,2]
[331711631,1720680638538,-7999.33884204,0.00026437,2]
[331711633,1720680638548,-7458.94652043,0.0002649,2]
[331711635,1720680638559,-150.5,0.00026508,62]
[331711637,1720680638570,-150.5,0.00026518,62]
[331711639,1720680638580,-974.08,0.00026518,3]
[331711641,1720680638591,-1667.97,0.00026518,3]
[331711643,1720680638601,-1389.98,0.00026518,3]
[331711644,1720680638612,-1158.31,0.00026518,3]
[331711647,1720680638623,-165.30597825,0.00026527,2]
[331711648,1720680638633,-165.92284789,0.00026527,2]
[331711650,1720680638645,-2186.54279506,0.00026528,5]
[331711652,1720680638655,-150.5,0.00026528,62]
[331711654,1720680638666,-65713.15122218,0.00026528,3]
[331711655,1720680638679,-797.17277758,0.00026528,3]
[331711656,1720680638694,-2460.31682731,0.00026528,3]
[331711706,1720680640917,-1970.04113667,0.00026528,3]
[331711707,1720680640929,-234528.23246426,0.00026528,3]
[331711708,1720680640938,-492.3730299,0.00026537,2]
[331711709,1720680640947,-500.0,0.00026537,2]
[331711710,1720680640957,-199.57668689,0.00026537,2]
[331711711,1720680640966,-500.0,0.00026537,2]
[331711712,1720680640975,-501.62589743,0.00026537,2]
[331711713,1720680640984,-500.0,0.00026537,2]
[331711714,1720680640995,-500.0,0.00026537,2]
[331711715,1720680641004,-500.0,0.00026537,2]
[331711716,1720680641013,-500.0,0.00026537,2]
[331711717,1720680641022,-500.0,0.00026537,2]
[331711719,1720680641032,-500.0,0.00026537,2]
[331711720,1720680641044,-173.34302212,0.00026537,2]
[331711722,1720680641054,-500.0,0.00026537,2]
[331711724,1720680641063,-179856.50699405,0.00026538,3]
[331711726,1720680641073,-201.03633962,0.00026574,2]
[331711728,1720680641083,-7999.338842,0.00026602,2]
[331711729,1720680641092,-76367.2286071,0.00026744,3]
[331711731,1720680641101,-7999.338842,0.00026766,2]
[331711733,1720680641111,-7999.338842,0.00026931,2]
[331711734,1720680641120,-18962.37896892,0.00027,4]
[331711735,1720680641130,-133248.64699069,0.00027,2]
[331711742,1720680645387,254.126566,0.00021096,2]
[331711823,1720681597000,376.98708664,0.00018899,2]
[331711824,1720681610149,-201.03633962,0.00019165,2]
[331711825,1720681610172,-107.26936026,0.00021096,2]
[331711827,1720681653668,-55.95550174,0.00021096,2]
[331711828,1720681653688,-154.55950541,0.0002243,2]
[331711829,1720681653709,-14810.35132418,0.00024006,2]
[331711831,1720681764114,-233.17338436,0.00021906,2]
[331711832,1720681764136,-154.55950541,0.00021917,2]
[331711834,1720681823491,286.876074,0.00021096,2]
[331711885,1720681832637,-154.55950541,0.00023455,2]
[331711887,1720681832647,-158.29964009,0.00023966,2]
[331711889,1720681832656,-194.9808545,0.00024006,2]
[331711996,1720681838855,-541.29319191,0.00024006,2]
[331712019,1720681841311,-2009.41297249,0.00024006,2]
[331712020,1720681841365,-7343.96165692,0.00024006,2]
[331712021,1720681841375,-272.25253202,0.00025125,2]
[331712022,1720681841385,-30000.0,0.00025501,2]
[331712023,1720681841394,-366.69138635,0.00025706,2]
[331712024,1720681841404,-366.69138635,0.00025772,2]
[331712025,1720681841413,-14919.30984571,0.000258,3]
[331712026,1720681841423,-500.0,0.00026,2]
[331712027,1720681841432,-366.69138635,0.00026113,2]
[331712028,1720681841441,-5293.69736034,0.00026425,2]
[331712029,1720681841450,-366.69138635,0.00026432,2]
[331712030,1720681841459,-154.55950541,0.00026566,2]
[331712031,1720681841468,-155.32790151,0.0002667,2]
[331712032,1720681841478,-5293.69736034,0.00026726,2]
[331712033,1720681841488,-366.69138635,0.00026815,2]
[331712034,1720681841498,-1059.21,0.0002688,3]
[331712035,1720681841508,-1653.78,0.0002688,3]
[331712036,1720681841518,-1378.15,0.0002688,3]
[331712037,1720681841527,-165.30597825,0.00026889,2]
[331712038,1720681841536,-165.92284789,0.00026889,2]
[331712039,1720681841546,-2186.54279506,0.0002689,5]
[331712040,1720681841555,-129834.688186,0.0002689,3]
[331712041,1720681841564,-50567.44453113,0.000269,3]
[331712062,1720681843934,-5800.0,0.000269,3]
[331712072,1720681846849,-878.92675256,0.000269,3]
[331712073,1720681846861,-811.81211323,0.000269,3]
[331712099,1720682745688,7605.66738955,0.00018899,2]
[331712105,1720682823729,246.502,0.00018899,2]
[331712107,1720682905506,391.80627157,0.00018899,2]
[331712108,1720682911276,196.54650804,0.00018899,2]
[331712109,1720682947729,708.29823114,0.000189,2]
[331712110,1720682950191,-158.32471,0.00021096,2]
[331712111,1720682950213,-166.666666,0.00022681,2]
[331712112,1720682952001,391.80627157,0.00022907,2]
[331712113,1720682956011,272.53227,0.00021096,2]
[331712114,1720682972160,191.88990126,0.00022909,2]
[331712360,1720683040941,-166.666666,0.000233,2]
[331712361,1720683040951,-106.63777006,0.00023546,2]
[331712362,1720683040965,-56.06992294,0.00023546,2]
[331712363,1720683040975,-24900.0,0.00023749,2]
[331712364,1720683040985,-708.29823114,0.000239,2]
[331712365,1720683040995,-166.666666,0.00023918,2]
[331712366,1720683041004,-166.666666,0.00024537,2]
[331712367,1720683041013,-166.666666,0.00025155,2]
[331712368,1720683041023,-778.75062496,0.00025391,2]
[331712369,1720683041033,-2000.0,0.00025401,2]
[331712370,1720683041043,-1830.32,0.00025491,3]
[331712371,1720683041052,-1525.26,0.00025491,3]
[331712372,1720683041062,-64917.3440931,0.00025491,3]
[331712373,1720683041071,-52136.2205257,0.00025501,2]
[331712374,1720683041081,-30000.0,0.00025501,2]
[331712375,1720683041091,-8126.40844508,0.00025673,2]
[331712376,1720683041100,-166.666666,0.00025773,2]
[331712377,1720683041109,-165.92284789,0.00025878,2]
[331712378,1720683041119,-562.1241737,0.00025878,2]
[331712379,1720683041128,-165.30597825,0.00025878,2]
[331712380,1720683041138,-370.61949865,0.00025878,2]
[331712381,1720683041148,-500.0,0.00025878,2]
[331712382,1720683041158,-500.0,0.00025878,2]
[331712383,1720683041168,-500.0,0.00025878,2]
[331712384,1720683041177,-500.0,0.00025878,2]
[331712385,1720683041187,-500.0,0.00025878,2]
[331712386,1720683041196,-500.0,0.00025878,2]
[331712387,1720683041206,-500.0,0.00025878,2]
[331712388,1720683041216,-500.0,0.00025878,2]
[331712389,1720683041226,-72.00948653,0.00025878,2]
[331712390,1720683041239,-427.99051347,0.00025878,2]
[331712391,1720683041248,-500.0,0.00025878,2]
[331712392,1720683041258,-500.0,0.00025878,2]
[331712393,1720683041268,-500.0,0.00025878,2]
[331712394,1720683041277,-500.0,0.00025878,2]
[331712395,1720683041287,-500.0,0.00025878,2]
[331712396,1720683041297,-500.0,0.00025878,2]
[331712397,1720683041306,-500.0,0.00025878,2]
[331712398,1720683041315,-533.88807662,0.00025878,2]
[331712399,1720683041325,-500.0,0.00025878,2]
[331712400,1720683041334,-2186.54279506,0.0002588,5]
[331712401,1720683041344,-18101.92801074,0.0002588,5]
[331712402,1720683041353,-129834.688186,0.0002588,3]
[331712403,1720683041363,-80702.15055031,0.0002589,3]
[331712548,1720683080102,150.0,0.00012,2]
[331712549,1720683151951,154.71780263,0.00019,2]
[331712550,1720683171479,1159.23553938,0.00014545,2]
[331712551,1720683171516,201.03633962,0.00014545,2]
[331712552,1720683184966,1500.0,0.00014545,2]
[331712559,1720683295200,224.52122455,0.0001763,2]
[331712562,1720683331536,180.97040071,0.0001763,2]
[331712564,1720683347828,570.48410754,0.0001763,2]
[331712567,1720683459675,7359.23741695,0.00018899,2]
[331712568,1720683514060,155.92358144,0.00018899,2]
[331712569,1720683519074,491.31326196,0.00018899,2]
[331712570,1720683521223,2540.34855157,0.00018899,2]
[331712571,1720683562934,728.37367261,0.00018899,2]
[331712572,1720683566231,318.0694556,0.00018899,2]
[331712576,1720683718997,2845.31610019,0.00018899,2]
[331712577,1720683719021,360.94473516,0.00018899,2]
[331712578,1720683775959,1635.9635479,0.00018899,2]
[331712579,1720683805858,3726.50592894,0.00018899,2]
[331712581,1720683836780,712.61039236,0.00018899,2]
[331712584,1720683898082,168.16312089,0.00018899,2]
[331712587,1720683992132,150.5,0.00022767,62]
[331712588,1720683993940,150.5,0.00022757,62]
[331712589,1720683995097,150.5,0.00022747,62]
[331712592,1720684049103,-183.7698628,0.00019799,2]
[331712593,1720684098500,154.57491897,0.00018899,2]
[331712594,1720684111538,150.5,0.00022746,62]
[331712595,1720684112141,150.5,0.00022736,62]
[331712596,1720684113561,150.5,0.00022726,62]
[331712597,1720684125595,158.29964009,0.00018899,2]
[331712598,1720684133682,3082.93771569,0.00018899,2]
[331712599,1720684133705,692.90579856,0.00018899,2]
[331712600,1720684140277,-175.06419494,0.00019165,2]
[331712601,1720684140309,-252.4417882,0.00019699,2]
[331712602,1720684140339,-300.0,0.00019799,2]
[331712603,1720684140371,-94.58981581,0.000198,2]
[331712604,1720684140408,-458.54710216,0.000198,2]
[331712605,1720684140443,-822.09579895,0.000198,2]
[331712606,1720684148452,-1477.66780531,0.00019065,2]
[331712607,1720684148476,-300.0,0.00019112,2]
[331712608,1720684148496,-32824.85499145,0.00019113,2]
[331712609,1720684149700,-173.29292155,0.00019113,2]
[331712610,1720684149721,-160.11041109,0.00019165,2]
[331712611,1720684149742,-204.77531789,0.00019165,2]
[331712612,1720684149763,-300.0,0.00019799,2]
[331712613,1720684149784,-50760.98780878,0.000198,2]
[331712614,1720684149806,-6385.638925,0.00020308,2]
[331712615,1720684149827,-293.58203646,0.00020545,2]
[331712616,1720684149846,-332.99975946,0.00020753,2]
[331712617,1720684149866,-420.0,0.0002083,2]
[331712618,1720684149886,-24900.0,0.00020853,2]
[331712619,1720684149908,-5047.19957499,0.00020955,2]
[331712620,1720684149928,-161.93910829,0.00021095,2]
[331712621,1720684149948,-156.01014507,0.00021095,2]
[331712622,1720684149969,-232.98135407,0.00021095,2]
[331712623,1720684149989,-361.816718,0.00021096,2]
[331712624,1720684150145,-5047.19957499,0.00021307,2]
[331712625,1720684150170,-207.47,0.00021472,3]
[331712626,1720684150189,-500.0,0.00021482,2]
[331712627,1720684150210,-500.0,0.00021482,2]
[331712628,1720684150229,-351.56651587,0.00021482,2]
[331712629,1720684150248,-500.0,0.00021482,2]
[331712630,1720684150269,-500.67684623,0.00021482,2]
[331712631,1720684150289,-500.0,0.00021482,2]
[331712632,1720684150313,-500.0,0.00021482,2]
[331712633,1720684150333,-195.01048906,0.00021482,2]
[331712634,1720684150353,-500.0,0.00021482,2]
[331712635,1720684150372,-500.0,0.00021482,2]
[331712636,1720684150392,-500.0,0.00021482,2]
[331712637,1720684150412,-500.0,0.00021482,2]
[331712638,1720684150431,-500.0,0.00021482,2]
[331712639,1720684150451,-500.0,0.00021482,2]
[331712640,1720684150470,-500.0,0.00021482,2]
[331712641,1720684150490,-500.0,0.00021482,2]
[331712642,1720684150510,-500.0,0.00021482,2]
[331712643,1720684150531,-500.0,0.00021482,2]
[331712644,1720684150551,-500.0,0.00021482,2]
[331712645,1720684150571,-500.0,0.00021482,2]
[331712646,1720684150593,-500.0,0.00021482,2]
[331712647,1720684150613,-500.0,0.00021482,2]
[331712648,1720684150633,-500.0,0.00021482,2]
[331712649,1720684150655,-636.69200723,0.00021482,2]
[331712650,1720684150676,-500.0,0.00021482,2]
[331712651,1720684150698,-500.0,0.00021482,2]
[331712652,1720684150719,-500.0,0.00021482,2]
[331712653,1720684150740,-328.79981732,0.00021482,2]
[331712654,1720684150761,-500.0,0.00021482,2]
[331712655,1720684150784,-474.52113589,0.00021482,2]
[331712656,1720684150806,-500.0,0.00021482,2]
[331712657,1720684150826,-500.0,0.00021482,2]
[331712658,1720684150847,-500.0,0.00021482,2]
[331712659,1720684150866,-500.0,0.00021482,2]
[331712660,1720684150886,-499.99999999,0.00021482,2]
[331712661,1720684150906,-500.0,0.00021482,2]
[331712662,1720684150925,-500.0,0.00021482,2]
[331712663,1720684150945,-500.0,0.00021482,2]
[331712664,1720684150964,-500.0,0.00021482,2]
[331712665,1720684150983,-500.0,0.00021482,2]
[331712666,1720684151002,-500.0,0.00021482,2]
[331712667,1720684151021,-500.0,0.00021482,2]
[331712668,1720684151047,-500.0,0.00021482,2]
[331712669,1720684151070,-500.0,0.00021482,2]
[331712670,1720684151093,-500.0,0.00021482,2]
[331712671,1720684151115,-500.0,0.00021482,2]
[331712672,1720684151135,-500.0,0.00021482,2]
[331712673,1720684151154,-500.0,0.00021482,2]
[331712674,1720684151174,-500.0,0.00021482,2]
[331712675,1720684151197,-186.88593949,0.00021482,2]
[331712676,1720684151217,-244.5206362,0.00021482,2]
[331712677,1720684151236,-500.0,0.00021482,2]
[331712678,1720684151260,-96371.06892642,0.00021483,3]
[331712679,1720684157623,154.57491897,0.00018899,2]
[331712681,1720684165232,-864.15057295,0.00019383,2]
[331712682,1720684165411,-864.15057295,0.00019383,2]
[331712683,1720684165451,-864.15057295,0.00019383,2]
[331712684,1720684165490,-223.59403709,0.00019383,2]
[331712685,1720684166107,-725.18342821,0.00019383,2]
[331712686,1720684166128,-476.312094,0.00020557,2]
[331712688,1720684171463,160.11041109,0.00019165,2]
[331712689,1720684193797,217.72515829,0.00018899,2]
[331712690,1720684200456,2134.96934119,0.00019165,2]
[331712691,1720684206245,182.65644103,0.00019165,2]
[331712692,1720684208663,250.0,0.000207,2]
[331712693,1720684223697,2257.40036537,0.00018899,2]
[331712694,1720684228160,763.93203298,0.000207,2]
[331712695,1720684229410,428.44271624,0.000207,2]
[331712696,1720684230229,225.81003448,0.000207,2]
[331712697,1720684231054,985.18546291,0.000207,2]
[331712743,1720684231927,-1014.81453709,0.000207,2]
[331712745,1720684231937,-909.19310766,0.00021095,2]
[331712747,1720684231947,-630.62860831,0.00021185,2]
[331712749,1720684231956,-1967.91263166,0.00021393,2]
[331712751,1720684231967,-300.0,0.00021482,2]
[331712753,1720684231976,-6515.02011315,0.00021483,3]
[331712770,1720684232098,210.73,0.00022747,62]
[331712865,1720684238094,-24985.95999143,0.00021483,3]
[331712867,1720684238104,-154.57491897,0.00021917,2]
[331712869,1720684238114,-166.666666,0.00021918,2]
[331712871,1720684238125,-351.59683946,0.0002221,2]
[331712873,1720684238135,-620.53143042,0.00022244,2]
[331712875,1720684238144,-321.26077845,0.0002233,2]
[331712878,1720684238155,-159.72145129,0.0002243,2]
[331712880,1720684238165,-166.666666,0.00022431,2]
[331712882,1720684238176,-321.26077843,0.00022494,2]
[331712884,1720684238185,-351.59683946,0.00022524,2]
[331712886,1720684238195,-154.57491897,0.00022579,2]
[331712888,1720684238205,-158.29964009,0.00022579,2]
[331712890,1720684238214,-180.46421565,0.00022579,2]
[331712892,1720684238224,-209.2545862,0.00022579,2]
[331712894,1720684238234,-321.26077843,0.00022657,2]
[331712896,1720684238244,-20312.91445208,0.00022676,2]
[331712898,1720684238253,-695.23,0.00022746,3]
[331712900,1720684238262,-347.61,0.00022746,3]
[331712902,1720684238272,-41471.91706641,0.00022756,5]
[331712904,1720684238283,-127872.049031,0.00022756,3]
[331712906,1720684238293,-127872.049031,0.00022757,3]
[331712908,1720684238303,-1500.0,0.00022907,2]
[331712910,1720684238313,-207.84,0.00022907,2]
[331712912,1720684238323,-318.82736005,0.00022907,2]
[331712914,1720684238333,-880.25528941,0.00022907,2]
[331712916,1720684238342,-280.3659175,0.00022907,2]
[331712918,1720684238352,-293.58203646,0.00022907,2]
[331712920,1720684238361,-154.87782908,0.00022907,2]
[331712922,1720684238370,-880.25528941,0.00022907,2]
[331712924,1720684238380,-166.666666,0.00022944,2]
[331712926,1720684238389,-351.59683946,0.00022992,2]
[331712928,1720684238399,-1980.53584489,0.00023,2]
[331712930,1720684238408,-200.0,0.00023,2]
[331712932,1720684238417,-351.59683946,0.00023071,2]
[331712934,1720684238427,-5047.199575,0.00023292,2]
[331712936,1720684238436,-620.02657152,0.00023356,2]
[331712938,1720684238445,-173.35265737,0.00023444,2]
[331712940,1720684238455,-500.0,0.00023444,2]
[331712942,1720684238464,-500.0,0.00023444,2]
[331712944,1720684238473,-500.0,0.00023444,2]
[331712946,1720684238483,-602.07352003,0.00023444,2]
[331712948,1720684238492,-347.42635493,0.00023444,2]
[331712949,1720684238502,-500.0,0.00023444,2]
[331712951,1720684238511,-495.00816506,0.00023444,2]
[331712953,1720684238521,-500.0,0.00023444,2]
[331712954,1720684238530,-500.0,0.00023444,2]
[331712955,1720684238539,-500.0,0.00023444,2]
[331712956,1720684238548,-500.0,0.00023444,2]
[331712957,1720684238558,-500.0,0.00023444,2]
[331712958,1720684238567,-500.0,0.00023444,2]
[331712959,1720684238576,-500.0,0.00023444,2]
[331712960,1720684238585,-500.0,0.00023444,2]
[331712961,1720684238595,-500.0,0.00023444,2]
[331712962,1720684238604,-405.09488848,0.00023444,2]
[331712963,1720684238613,-500.0,0.00023444,2]
[331712964,1720684238623,-500.0,0.00023444,2]
[331712965,1720684238632,-500.0,0.00023444,2]
[331712966,1720684238642,-127872.049031,0.00023445,3]
[331712967,1720684238651,-20312.91445207,0.00023455,2]
[331712968,1720684238660,-166.666666,0.00023456,2]
[331712969,1720684238670,-200.0,0.000235,2]
[331712970,1720684238679,-351.59683946,0.00023534,2]
[331712971,1720684238688,-420.0,0.0002363,2]
[331712972,1720684238697,-351.59683946,0.00023658,2]
[331712973,1720684238706,-5047.199575,0.00023676,2]
[331712974,1720684238715,-5047.199575,0.0002394,2]
[331712976,1720684238726,-166.666666,0.00023969,2]
[331712978,1720684238735,-351.59683946,0.00023972,2]
[331712979,1720684238745,-1390.46,0.00024116,3]
[331712982,1720684238765,-695.22,0.00024116,3]
[331712984,1720684238776,-5047.199575,0.00024161,2]
[331712986,1720684238787,-1967.9126316,0.0002418,2]
[331712987,1720684238797,-20312.91445207,0.00024233,2]
[331712989,1720684238808,-351.59683946,0.00024366,2]
[331712991,1720684238818,-3541.22918415,0.00024383,2]
[331712993,1720684238828,-5047.199575,0.00024411,2]
[331712995,1720684238838,-3320.96384,0.00024458,7]
[331712996,1720684238848,-3320.96384,0.00024458,7]
[331712998,1720684238860,-351.59683946,0.00024464,2]
[331712999,1720684238870,-166.666666,0.00024482,2]
[331713000,1720684238880,-620.00132858,0.00024524,2]
[331713001,1720684238889,-310.81016817,0.0002465,2]
[331713002,1720684238900,-5047.199575,0.00024659,2]
[331713003,1720684238910,-9050.96400537,0.00024697,5]
[331713004,1720684238920,-151071.58177187,0.00024697,2]
[331713005,1720684238935,-137277.19840903,0.00024697,2]
[331713006,1720684238946,-151.0,0.00024699,7]
[331713007,1720684238956,-151.0,0.00024699,7]
[331713008,1720684238966,-3320.96384,0.00024699,7]
[331713009,1720684238978,-3320.96384,0.00024699,7]
[331713010,1720684238988,-351.59683946,0.00024838,2]
[331713011,1720684238998,-400.0,0.0002487,2]
[331713012,1720684239009,-302.18418731,0.000249,2]
[331713013,1720684239019,-351.59683946,0.0002497,2]
[331713014,1720684239029,-189.97697738,0.00025,2]
[331713015,1720684239039,-229.22032487,0.00025,2]
[331713016,1720684239049,-791.03297129,0.00025,2]
[331713017,1720684239059,-243.97778221,0.00025,2]
[331713018,1720684239069,-155.28371391,0.00025,2]
[331713019,1720684239080,-1144.72262457,0.00025,30]
[331713020,1720684239089,-20312.91445207,0.00025012,2]
[331713021,1720684239100,-151.0,0.00025032,7]
[331713022,1720684239110,-154.261413,0.00025032,7]
[331713023,1720684239120,-3320.96384,0.00025032,7]
[331713024,1720684239131,-3320.96384,0.00025032,7]
[331713025,1720684239141,-151.0,0.00025042,7]
[331713026,1720684239151,-3320.96384,0.00025042,7]
[331713027,1720684239161,-3320.96384,0.00025042,7]
[331713028,1720684239171,-30000.0,0.00025052,2]
[331713029,1720684239181,-150.0,0.00025082,2]
[331713030,1720684239191,-5047.199575,0.00025094,2]
[331713031,1720684239201,-302.18418731,0.00025149,2]
[331713032,1720684239211,-150.60173835,0.00025228,2]
[331713033,1720684239221,-5047.199575,0.00025299,2]
[331713034,1720684239230,-302.18418731,0.00025398,2]
[331713035,1720684239240,-351.59683946,0.00025403,2]
[331713036,1720684239250,-351.59683957,0.00025519,2]
[331713037,1720684239260,-5047.199575,0.00025626,2]
[331713038,1720684239270,-224.30198932,0.00025647,2]
[331713039,1720684239281,-620.00006643,0.0002575,2]
[331713040,1720684239292,-20198.34074,0.0002578,2]
[331713041,1720684239302,-20312.91445207,0.0002579,2]
[331713042,1720684239312,-151.0,0.0002579,7]
[331713043,1720684239322,-3320.96384,0.0002579,7]
[331713044,1720684239332,-3320.96384,0.0002579,7]
[331713045,1720684239343,-153.0,0.00025808,2]
[331713046,1720684239353,-153.0,0.00025808,2]
[331713047,1720684239362,-151.0,0.0002587,7]
[331713048,1720684239372,-151.0,0.0002587,7]
[331713049,1720684239382,-151.0,0.0002587,2]
[331713050,1720684239392,-81123.99021526,0.0002589,3]
[331713051,1720684239401,-151.0,0.0002589,7]
[331713052,1720684239411,-151.0,0.0002589,7]
[331713053,1720684239421,-175.010961,0.0002589,2]
[331713054,1720684239431,-151.0,0.0002589,7]
[331713055,1720684239441,-3320.96384,0.0002589,7]
[331713056,1720684239452,-3320.96384,0.0002589,7]
[331713057,1720684239463,-151.0,0.000259,7]
[331713058,1720684239472,-151.0,0.000259,7]
[331713059,1720684239482,-151.0,0.000259,7]
[331713060,1720684239493,-3320.96384,0.000259,7]
[331713061,1720684239503,-3320.96384,0.000259,7]
[331713062,1720684239513,-587.0,0.00025993,2]
[331713063,1720684239523,-63687.68578863,0.00026,2]
[331713064,1720684239533,-700.0,0.00026,10]
[331713065,1720684239543,-2500.02568789,0.00026,2]
[331713066,1720684239554,-215.126289,0.00026,7]
[331713067,1720684239564,-215.126289,0.00026,7]
[331713068,1720684239574,-251.40015,0.00026,7]
[331713069,1720684239583,-251.40015,0.00026,7]
[331713070,1720684239597,-228.303785,0.00026043,7]
[331713071,1720684239607,-151.0,0.00026043,7]
[331713072,1720684239616,-5047.199575,0.00026046,2]
[331713073,1720684239626,-251.40015,0.00026179,7]
[331713074,1720684239636,-251.40015,0.00026179,7]
[331713075,1720684239647,-239.573178,0.00026179,7]
[331713076,1720684239657,-3320.96384,0.00026179,7]
[331713077,1720684239667,-3320.96384,0.00026179,7]
[331713078,1720684239676,-215.126289,0.00026218,7]
[331713079,1720684239686,-215.126289,0.00026218,7]
[331713080,1720684239696,-5047.199575,0.00026405,2]
[331713081,1720684239706,-7458.94652043,0.0002649,2]
[331713082,1720684239716,-153.0,0.0002663,2]
[331713084,1720684239727,-153.0,0.0002663,2]
[331713086,1720684239737,-153.0,0.0002663,2]
[331713087,1720684239747,-600.0,0.00026647,2]
[331713088,1720684239757,-215.126289,0.00026768,7]
[331713089,1720684239767,-215.126289,0.00026768,7]
[331713090,1720684239777,-251.40015,0.00026768,7]
[331713091,1720684239787,-251.40015,0.00026768,7]
[331713092,1720684239797,-151.0,0.00026778,7]
[331713093,1720684239807,-215.126289,0.00026778,7]
[331713094,1720684239817,-215.126289,0.00026778,7]
[331713095,1720684239827,-251.40015,0.00026778,7]
[331713097,1720684239837,-251.40015,0.00026778,7]
[331713098,1720684239847,-151.0,0.00026778,7]
[331713099,1720684239857,-3320.96384,0.00026778,7]
[331713100,1720684239866,-3320.96384,0.00026778,7]
[331713101,1720684239876,-103729.91164735,0.0002678,2]
[331713103,1720684239885,-151.0,0.0002678,7]
[331713104,1720684239895,-215.126289,0.0002678,7]
[331713105,1720684239904,-215.126289,0.0002678,7]
[331713107,1720684240036,-251.40015,0.0002678,7]
[331713108,1720684240046,-251.40015,0.0002678,7]
[331713109,1720684240056,-151.0,0.0002678,7]
[331713110,1720684240066,-3320.96384,0.0002678,7]
[331713111,1720684240075,-3320.963847,0.0002678,7]
[331713112,1720684240085,-5047.199575,0.00026828,2]
[331713113,1720684240095,-154.62117811,0.00026848,2]
[331713114,1720684240104,-151.0,0.00026849,7]
[331713115,1720684240114,-151.0,0.00026849,7]
[331713116,1720684240123,-151.160005,0.00026849,7]
[331713117,1720684240133,-5047.199575,0.00026939,2]
[331713118,1720684240142,-1967.9126316,0.00026966,2]
[331713119,1720684240152,-500.0,0.00027,2]
[331713120,1720684240161,-18962.37896892,0.00027,4]
[331713121,1720684240170,-620.00000332,0.00027038,2]
[331713122,1720684240180,-2128.85592131,0.00027184,2]
[331713123,1720684240190,-610.44931723,0.00027184,2]
[331713124,1720684240199,-155.45465387,0.00027184,2]
[331713125,1720684240209,-1435.91858147,0.00027184,2]
[331713126,1720684240219,-155.45465387,0.00027184,2]
[331713127,1720684240229,-524.1077099,0.00027184,2]
[331713128,1720684240239,-2421.99241206,0.00027184,2]
[331713129,1720684240248,-492.55302453,0.00027184,2]
[331713130,1720684240258,-154.59033561,0.00027184,2]
[331713131,1720684240267,-758.295842,0.00027194,2]
[331713132,1720684240278,-156.37674716,0.00027194,2]
[331713133,1720684240289,-285.69121963,0.00027194,2]
[331713134,1720684240299,-191.16817144,0.00027194,2]
[331713135,1720684240310,-154.57491897,0.00027194,2]
[331713136,1720684240319,-1142.009263,0.00027194,2]
[331713137,1720684240330,-224.81671974,0.00027194,2]
[331713138,1720684240340,-154.57491897,0.00027194,2]
[331713139,1720684240349,-518.18746811,0.00027194,2]
[331713140,1720684240359,-361.816718,0.00027195,2]
[331713141,1720684240368,-5047.199575,0.00027202,2]
[331713142,1720684240377,-38822.03712365,0.00027396,2]
[331713143,1720684240386,-151.0,0.00027396,7]